Workbook

Sheet Instructions
A1: Application and Scoring Tool Instructions | K1: Version | L1: 20171212
A3: The instructions can be used to understand the functionality of the tool. The tool attempts to complete as many fields as possible form information entered in the Economic Crash Analysis Tool (ECAT).
A5: The worksheets have been protected because the tool is standardized to import into the ODOT Central Office Database. Once submitted, the complete data layouts will be imported into the current database. At this point, the district will be able to make any changes desired prior to the HSIP Program Committee Review.
A8: I recommend starting a new application by importing data from existing ECAT Tool(s). The import functionality will obtain information from (1) an ECAT Tool that does not have a fundamental change in Safety Performance Function (SPF) ('No' response in Cell "K14" on the Project Information Worksheet) or (2) an ECAT Tool that has have a fundamental change in Safety Performance Function (SPF) ('Yes' response in Cell "K14" on the Project Information Worksheet). Follow the coded prompts. Two files will be required for Item (2). The order of import is does not matter. Following the import process, please verify the data as assumptions have been made. For example, it was assumed that only one route (major route) was used in the Project Element Description Table when determining project limits (All NLFIDs match in Column F). Note: If you choose to import a new dataset, any previous information will be overridden.
A11: At times, it will be necessary to change the font size of cells to make the text visible. Once the tool is activated, select the cells you desire to decrease / increase the font size (selection can be contiguous or noncontiguous cells). Once the cells have been selected, select the desired functionality.
A14: This tool can be used to add rows of details for either work locations of funding sources. Submitters can add up to a total of 10 work locations. Similarly, there are a ten (10) total funding sources possible (including the three already defined). For funding sources, we are asking that each source be individually itemized.
A16: ODOT Internal Only Functionality:
A17: I apologize but this functionality requires ODBC connection to ODOT's Sybase Tables. These tools are reserved for only internal use only.
A20: This tool will find the associated coordinates stored in the BTRS_LOG_POINTS Table. This table includes all State, County and Township Routes. This tool appears twice in the application. It will only populate the attributes immediately adjacent to the button.
A23: This tool searches the Safety Analyst Priority List Locations (Top 500 Locations only), HSP Locations, Hot Spot Locations, High Risk Rural Roads (State and Local Systems), and the Five Percent Report Locations for the previous 10 years. See records retention details for more information:
A24: http://apps.das.ohio.gov/rims/SelectMenu/Selection.asp
A27: This tool queries from the BTRS_CONGESTION_SEGMENTS table residing in Sybase. The data is based on counted volumes and statewide model projects for current year volumes. NOTE: The data is only available for state system at this time.

Sheet Safety Application
A1: General Project Information | Z1: Show Conditional Format: | AA1: Yes
A2: Project Sponsoring Agency | D2: ODOT District 6 | Z2: Lat Long Format: | AA2: Yes
A3: Project Name | D3: Courtright Rd Bridge over I-70 | Z3: Priority Rank Format: | AA3: Yes
A4: PID | D4: 109659
A5: Project Manager | D5: Drew Hurst
A6: Contact Phone | D6: 740-833-8345
A7: Contact Email | D7: andrew.hurst@dot.ohio.gov
A9: Location Information
A10: ODOT District | C10: 6 | F10: County | H10: FRA
A11: Route Number | C11: 70 | F11: Road Name | H11: Courtright Rd
A12: Begin Logpoint | C12: 20.29 | F12: End Logpoint | H12: =IF(D58="","",D58) -> 
A13: Begin Latitude | C13: 39.9315 | F13: Begin Longitude | H13: -82.8981
A14: End Latitude | C14: 39.9366 | F14: End Longitude | H14: -82.8977
A16: Project Description
A17: Summary of Crash Patterns
A18: One pedestrian-related crash has occurred in the past 5 years on Courtright between Deshler Ave. and Groves Rd, along with several other crashes including rear ends and sideswipes. There is evidence of pedestrian traffic, including worn paths leading up to the bridge.
A19: Summary of Recommended Countermeasures
A20: Add sidewalk to Courtright Rd from Deshler Ave to Groves Rd, including the IR 70 overpass. City of Columbus has an upcoming project to add sidewalks along Courtright Rd. to the south.
A21: Project Priority Information
A22: There have been numerous community requests to add sidewalk across IR 70, and this would tie into a bridge deck replacement project. There are no other potential pedestrian crossings over I-70 for a mile in each direction, and there are COTA bus stops on both sides of the bridge.
A23: Crash Data
A24: Crash Totals
F25: Fatal & Serious Injury (KA) | G25: Visible Injury (B) | H25: Non-Visible (C) | I25: Property Damage Only (O) | J25: Total
A26: Existing Conditions: Predicted Crash Frequency | F26: =IF(ScoringCalculations!D36=0,"",ScoringCalculations!D36) -> 0.0204 | G26: =IF(ScoringCalculations!E36=0,"",ScoringCalculations!E36) -> 0.0509 | H26: =IF(ScoringCalculations!F36=0,"",ScoringCalculations!F36) -> 0.0618 | I26: =IF(ScoringCalculations!G36=0,"",ScoringCalculations!G36) -> 0.2921 | J26: =ROUND(SUM(F26:I26),2) -> 0.43
A27: Existing Conditions: Expected Crash Frequency | F27: =IF(ScoringCalculations!D37=0,"",ScoringCalculations!D37) -> 0.0202 | G27: =IF(ScoringCalculations!E37=0,"",ScoringCalculations!E37) -> 0.0528 | H27: =IF(ScoringCalculations!F37=0,"",ScoringCalculations!F37) -> 0.0609 | I27: =IF(ScoringCalculations!G37=0,"",ScoringCalculations!G37) -> 0.3093 | J27: =ROUND(SUM(F27:I27),2) -> 0.44
A28: Potential for Safety Improvement | F28: =IF(ScoringCalculations!D38=0,"",ScoringCalculations!D38) -> -0.0002 | G28: =IF(ScoringCalculations!E38=0,"",ScoringCalculations!E38) -> 0.0019 | H28: =IF(ScoringCalculations!F38=0,"",ScoringCalculations!F38) -> -0.0009 | I28: =IF(ScoringCalculations!G38=0,"",ScoringCalculations!G38) -> 0.0172 | J28: 0.02
A29: ="Proposed Conditions: "&IF('Project Scoring'!H7="ECAT - Change in base SPF","Predicted","Expected")&" Crash Frequency" -> Proposed Conditions: Expected Crash Frequency | F29: =IF(ScoringCalculations!D39=0,"",ScoringCalculations!D39) -> 0.0202 | G29: =IF(ScoringCalculations!E39=0,"",ScoringCalculations!E39) -> 0.0528 | H29: =IF(ScoringCalculations!F39=0,"",ScoringCalculations!F39) -> 0.0609 | I29: =IF(ScoringCalculations!G39=0,"",ScoringCalculations!G39) -> 0.3093 | J29: 0.44
A30: Observed Crashes | F30: =IF(ScoringCalculations!D40="","",ScoringCalculations!D40) -> 0 | G30: =IF(ScoringCalculations!E40="","",ScoringCalculations!E40) -> 0.5 | H30: =IF(ScoringCalculations!F40="","",ScoringCalculations!F40) -> 0 | I30: =IF(ScoringCalculations!G40="","",ScoringCalculations!G40) -> 0.5 | J30: 1
A31: Observed People Injury Totals
F32: Fatal Injury (K) | G32: Serious Injury (A) | H32: Visible Injury (B) | I32: Non-Visible (C) | J32: Total
A33: Observed People Injury Totals | F33: =IF(ScoringCalculations!D46="","",ScoringCalculations!D46) -> 0 | G33: =IF(ScoringCalculations!E46="","",ScoringCalculations!E46) -> 0 | H33: =IF(ScoringCalculations!F46="","",ScoringCalculations!F46) -> 1.3333 | I33: =IF(ScoringCalculations!G46="","",ScoringCalculations!G46) -> 0.5 | J33: =ROUND(SUM(F33:I33),2) -> 1.83
A35: Application Scoring
A36: Category | H36: Scoring Value | I36: Points Awarded | J36: Points Possible
A37: Expected Crash Frequency | H37: =IF(J27=0,"",J27) -> 0.44 | I37: =IFERROR(VLOOKUP(H37,ScoringTable!AA:AB,2,TRUE),"") -> 0 | J37: =MAX(ScoringTable!AB:AB) -> 10
A38: Ratio of Observed Fatal and Serious Injuries to Observed Total Crashes | H38: =IF(J30=0,"",ROUND(SUM(ScoringCalculations!D46:E46)/J30,2)) -> 0 | I38: =IFERROR(VLOOKUP(H38,ScoringTable!AC:AD,2,TRUE),"") -> 0 | J38: =MAX(ScoringTable!AD:AD) -> 5
A39: % of the Potential for Safety Improvement to Total Expected Crashes | H39: =IF(J27=0,"",IF(J28<0,0,IFERROR(ROUND(J28/J27,4),0))) -> 0.0455 | I39: =IFERROR(VLOOKUP(H39,ScoringTable!AE:AF,2,TRUE),"") -> 8 | J39: =MAX(ScoringTable!AF:AF) -> 20
A40: Relative Severity Index | H40: =IF(ScoringCalculations!B29=0,"",ScoringCalculations!B29) -> 24668.01 | I40: =IFERROR(VLOOKUP(H40,ScoringTable!AG:AH,2,TRUE),"") -> 2 | J40: =MAX(ScoringTable!AH:AH) -> 10
A41: Equivalent Property Damage Only Index | H41: =IF(ScoringCalculations!H42=0,"",ScoringCalculations!H42/IF(ScoringCalculations!H37=0,ScoringCalculations!H40,ScoringCalculations!H37)) -> 3.909090909 | I41: =IFERROR(VLOOKUP(H41,ScoringTable!AI:AJ,2,TRUE),"") -> 3 | J41: =MAX(ScoringTable!AJ:AJ) -> 5
A42: Volume to Capacity Ratio | H42: =IF(ScoringCalculations!D59="","",ScoringCalculations!D59) -> 0.5 | I42: =IFERROR(VLOOKUP(H42,ScoringTable!AM:AN,2,TRUE),"") -> 0 | J42: =MAX(ScoringTable!AN:AN) -> 10
A43: Benefit Cost Ratio | H43: =IF(ScoringCalculations!D54="Unable to Calculate","",ScoringCalculations!D54) -> 0 | I43: =IFERROR(IF(H43<0,0,VLOOKUP(H43,ScoringTable!AO:AP,2,TRUE)),"") -> 0 | J43: =MAX(ScoringTable!AP:AP) -> 30
A44: Safety Funding Request Percentage | H44: =IF(SUM(J73:J74)=0,"",ROUND(SUM(J73:J74)/J83,4)) -> 0.3421 | I44: =IFERROR(VLOOKUP(H44,ScoringTable!AQ:AR,2,TRUE),"") -> 10 | J44: =MAX(ScoringTable!AR:AR) -> 10
A45: Total | I45: =IF(SUM(I37:I44)=0,"",SUM(I37:I44)) -> 23 | J45: =SUM(J37:J44) -> 100
A47: Strategic Highway Safety Plan
A48: Functional Class | E48: Interstates
A49: Major Route AADT | E49: 95340
A50: Ohio Emphasis Area | E50: Emphasis Area IV - Special Vehicles/Roadway Users
A51: Ohio Emphasis Area Subcategory | E51: Pedestrians
A52: FHWA Emphasis Area | E52: Making walking and street crossing easier
A53: FHWA Improvement Category | E53: Pedestrians and bicyclists
A54: FHWA Improvement Subcategory | E54: Install sidewalk
A56: Work Locations
A57: NLFID | C57: Begin Logpoint | D57: End Logpoint | E57: Begin Latitude | F57: Begin Longitude | G57: Location Termini (i.e. from Street 1 to Street 2) | AA57: EndLatitude | AB57: EndLongitude
A58: SFRAIR00070**C | C58: 20.29 | E58: 39.934 | F58: -82.898 | G58: Courtright Rd overpass | K58: =IF(OR(E58="",F58=""),"",HYPERLINK(CONCATENATE("http://maps.google.com/maps?q=",+E58,",+",+F58,"+(Begin Project)&iwloc=A&hl=en"),"Google Map")) -> Google Map | M58: =IF(OR(E58="",F58=""),"",HYPERLINK(CONCATENATE("http://bing.com/maps/default.aspx?rtop=1~0&rtp=pos.",E58,"_",F58,"_","Begin Project"),"Bing Maps")) -> Bing Maps | O58: =IF(A58="","",IF(OR(MID(A58,5,2)="IR",MID(A58,5,2)="SR",MID(A58,5,2)="US"),IF(RIGHT(A58,1)="C",HYPERLINK("http://pathweb.pathwayservices.com/ohiopublic/?nlfid='"&A58&"'&logpoint="&C58,"Pathway Images"),"Not Available"),"Not Available")) -> Pathway Images
A59: CFRACR00114**C | C59: 2.05 | D59: 2.35 | E59: 39.932 | F59: -82.898 | G59: Groves Rd to Deshler Ave | K59: =IF(OR(E59="",F59=""),"",HYPERLINK(CONCATENATE("http://maps.google.com/maps?q=",+E59,",+",+F59,"+(Begin Project)&iwloc=A&hl=en"),"Google Map")) -> Google Map | M59: =IF(OR(E59="",F59=""),"",HYPERLINK(CONCATENATE("http://bing.com/maps/default.aspx?rtop=1~0&rtp=pos.",E59,"_",F59,"_","Begin Project"),"Bing Maps")) -> Bing Maps | O59: Not Available
A69: Project Funding
A70: Project Phase | D70: Safety Study | E70: Interchange Mod. Study | F70: PE - Environmental | G70: PE - Detailed Design | H70: Right of Way /Utilities | I70: Construction | J70: Total
A71: Fiscal Year | F71: 2020 | G71: 2020 | H71: 2021 | I71: 2022
A72: Project Phase Completed | I72: N/A
A73: Previous Safety | J73: =SUM(D73:I73) -> 0
A74: New Safety | I74: 1300000 | J74: =SUM(D74:I74) -> 1300000
A75: Sponsor Funding | I75: 2500000 | J75: 2500000
J76: 0
J77: 0
J78: 0
J79: 0
J80: 0
J81: 0
J82: 0
C83: Total | D83: =SUM(D73:D82) -> 0 | E83: =SUM(E73:E82) -> 0 | F83: 0 | G83: 0 | H83: 0 | I83: 3800000 | J83: 3800000
A84: Additional Funding Detail
A85: Other funds used to replace bridge deck and superstructure.
A87: Project Development
A88: Project Phase | E88: Completed by | H88: Completion Date
A89: Safety Study
A90: Interchange Modification Study
A91: PE-Environmental
A92: PE-Detailed Design
A93: Right of Way / Utilities
A95: Applicant Information
A96: Name | F96: Title | I96: Phone Number
A97: Drew Hurst | F97: Traffic Safety Engineer | I97: =IF(D6="","",D6) -> 740-833-8345
A98: Signature | I98: Date
I99: =NOW() -> 2019-05-07T16:56:40.090
I101: Version: | J101: 20150917
A102: The following information should be included in submission of the safety project application: 1. An electronic copy of the Safety Engineering Study 2. All Excel Analysis Files May include Crash Analysis Module (CAM) Tool, Economic Crash Analysis Tool (ECAT), HSIP Application and Scoring Tool. 3. Benefit-Cost Results (Economic Analysis) 4. DSRT approval signatures
A104: ODOT Use Only:
A105: Application ID:
A106: 201905D06-04
A107: Document Library on Odrive:
A108: O:\SAFETY\D06\SAFETY APPLICATIONS\FRA-70-20.29

Sheet DSRTSignature (hidden)
A1: General Project Information | Z1: Show Conditional Format: | AA1: Yes
A2: Project Sponsoring Agency | Z2: Lat Long Format: | AA2: Yes
A3: Project Name | Z3: Priority Rank Format: | AA3: Yes
A4: PID
A5: Project Manager
A6: Contact Phone
A7: Contact Email
A9: Project Description
A10: Summary of Crash Patterns
A12: Summary of Recommended Countermeasures | B12: Summary of Recommended Countermeasures | C12: Summary of Recommended Countermeasures | D12: Summary of Recommended Countermeasures | E12: Summary of Recommended Countermeasures | F12: Summary of Recommended Countermeasures | G12: Summary of Recommended Countermeasures | H12: Summary of Recommended Countermeasures | I12: Summary of Recommended Countermeasures | J12: Summary of Recommended Countermeasures
A14: Project Priority Information | B14: Project Priority Information | C14: Project Priority Information | D14: Project Priority Information | E14: Project Priority Information | F14: Project Priority Information | G14: Project Priority Information | H14: Project Priority Information | I14: Project Priority Information | J14: Project Priority Information
A17: District Safety Review Team Signatures
A18: Name | F18: Title | I18: Approve | J18: Disapprove
F19: Planning & Engineering Administrator | I19: ¨ | J19: ¨
A20: Signature | I20: Date
A22: Comments:
A23: Name | F23: Title | I23: Approve | J23: Disapprove
F24: Highway Management Adminstrator | I24: ¨ | J24: ¨
A25: Signature | I25: Date
A27: Comments:
A28: Name | F28: Title | I28: Approve | J28: Disapprove
F29: Design Engineer | I29: ¨ | J29: ¨
A30: Signature | I30: Date
A32: Comments:
A33: Name | F33: Title | I33: Approve | J33: Disapprove
F34: Planning Manager | I34: ¨ | J34: ¨
A35: Signature | I35: Date
A37: Comments:
A38: Name | F38: Title | I38: Approve | J38: Disapprove
F39: Traffic Engineer | I39: ¨ | J39: ¨
A40: Signature | I40: Date
A42: Comments:
A43: Name | F43: Title | I43: Approve | J43: Disapprove
F44: Other | I44: ¨ | J44: ¨
A45: Signature | I45: Date
A47: Comments:

Sheet Project Scoring
A1: Project Scoring Summary
A2: General Project Information
A3: Project Name | C3: FRA-70 | F3: Contact Email
A4: Project Description | C4: add sidewalk to overpass | F4: Contact Phone
A5: Reference Number | C5: 1 | F5: Date Performed
A6: Analyst | F6: Analysis Year
A7: Agency/Company | F7: Analysis Type Performed | H7: ECAT - No Change in base SPF
B9: Category | H9: Value | I9: Points Awarded
B10: Expected Crash Frequency | H10: =IF('Safety Application'!H37="","",'Safety Application'!H37) -> 0.44 | I10: =IF('Safety Application'!I37="","",'Safety Application'!I37) -> 0
B11: Ratio of Observed Fatal and Serious Injuries to Observed Total Crashes | H11: =IF('Safety Application'!H38="","",'Safety Application'!H38) -> 0 | I11: =IF('Safety Application'!I38="","",'Safety Application'!I38) -> 0
B12: % of the Potential for Safety Improvement to Total Expected Crashes | H12: =IF('Safety Application'!H39="","",'Safety Application'!H39) -> 0.0455 | I12: =IF('Safety Application'!I39="","",'Safety Application'!I39) -> 8
B13: Relative Severity Index | H13: =IF('Safety Application'!H40="","",'Safety Application'!H40) -> 24668.01 | I13: =IF('Safety Application'!I40="","",'Safety Application'!I40) -> 2
B14: Equivalent Property Damage Only Index | H14: =IF('Safety Application'!H41="","",'Safety Application'!H41) -> 3.909090909 | I14: =IF('Safety Application'!I41="","",'Safety Application'!I41) -> 3
B15: Volume to Capacity Ratio | H15: =IF('Safety Application'!H42="","",'Safety Application'!H42) -> 0.5 | I15: =IF('Safety Application'!I42="","",'Safety Application'!I42) -> 0
B16: Benefit Cost Ratio | H16: =IF('Safety Application'!H43="","",'Safety Application'!H43) -> 0 | I16: =IF('Safety Application'!I43="","",'Safety Application'!I43) -> 0
B17: Safety Funding Request Percentage | H17: =IF('Safety Application'!H44="","",'Safety Application'!H44) -> 0.3421 | I17: =IF('Safety Application'!I44="","",'Safety Application'!I44) -> 10
B19: Safety Application Score | I19: =SUM(I10:I17) -> 23

Sheet ScoringCalculations
A1: Relative Severity Index Calculation | AI1: All Sites
AA2: NLFID: | AE2: FindTruck | AF2: 0 | AI2: HSM Elements Only
A3: Site Type | AA3: Blog: | AE3: FindVC | AF3: 0 | AI3: Observed Elements Only
A4: Urban Non-Freeway | AA4: Elog:
AA5: WAADT:
A6: Fill in the Number of Crashes by Crash Type | AA6: WAADTT:
A7: Crash Type | B7: Number of Crashes | C7: Crash Type Severity Calc | D7: Rural Non-Freeway | E7: Urban Non-Freeway | F7: Freeway | AA7: WVCRatio:
A8: Not Stated | B8: 0.0009 | C8: =IF($A$4="","",IF($A$4=D$7,B8*D8,IF($A$4=E$7,B8*E8,IF($A$4=F$7,B8*F8)))) -> 29.32133081 | D8: 57175.98276 | E8: 32579.25645 | F8: 20119.27273 | AA8: TotalLength:
A9: Head On | B9: 0.0031 | C9: =IF($A$4="","",IF($A$4=D$7,B9*D9,IF($A$4=E$7,B9*E9,IF($A$4=F$7,B9*F9)))) -> 265.6733501 | D9: 271494.1843 | E9: 85701.08067 | F9: 249708.1274 | AA9: Functional Class: | AC9: =IFERROR(VLOOKUP(AB9,RefTables!E27:F34,2,FALSE),"Other") -> Other
A10: Rear End | B10: 0.1882 | C10: 3725.754759 | D10: 29092.43537 | E10: 19796.78405 | F10: 23786.41001 | AA10: Truck %: | AB10: =IFERROR(ROUND(AB6/AB5,4),"") -> 
A11: Backing | B11: 0.0091 | C11: 104.4630888 | D11: 13986.43328 | E11: 11479.4603 | F11: 14260.69525
A12: Sideswipe - Meeting | B12: 0.0159 | C12: 513.4302927 | D12: 58652.00394 | E12: 32291.21337 | F12: 54020.50194
A13: Sideswipe - Passing | B13: 0.0368 | C13: 543.9528013 | D13: 29066.04141 | E13: 14781.32612 | F13: 19413.60825
A14: Angle | B14: 0.0193 | C14: 496.1336296 | D14: 57046.96056 | E14: 25706.40568 | F14: 33071.52157
A15: Parked Vehicle | B15: 0.042 | C15: 700.8344206 | D15: 35937.31912 | E15: 16686.53382 | F15: 26992.08646
A16: Pedestrian | B16: 0.0163 | C16: 2022.568187 | D16: 233843.9698 | E16: 124083.9378 | F16: 361506.5455
A17: Animal | B17: 0.1133 | C17: 1248.597994 | D17: 11933.13039 | E17: 11020.28238 | F17: 11682.5037
A18: Train | B18: 0 | C18: 0 | D18: 246848.16 | E18: 96186.17801 | F18: 12417.84615
A19: Pedalcycles | B19: 0.0044 | C19: 307.2020991 | D19: 143918.0411 | E19: 69818.65889 | F19: 64977.65289
A20: Other Non-Vehicle | B20: 0 | C20: 0 | D20: 108688.4103 | E20: 19875.42857 | F20: 11696
A21: Fixed Object | B21: 0.089 | C21: 3159.068593 | D21: 44241.78438 | E21: 35495.15273 | F21: 31807.09255
A22: Other Object | B22: 0.0048 | C22: 102.4320473 | D22: 20701.67273 | E22: 21340.00986 | F22: 13042.35049
A23: Overturning | B23: 0.0023 | C23: 176.1429711 | D23: 84936.81396 | E23: 76583.9005 | F23: 75106.51615
A24: Other Non-Collision | B24: 0.0068 | C24: 164.2415931 | D24: 21907.63573 | E24: 24153.17545 | F24: 15969.35137
A25: Left Turn | B25: 0.0043 | C25: 167.9302293 | D25: 88417.33667 | E25: 39053.54171 | F25: 36359.09
A26: Right Turn | B26: 0 | C26: 0 | D26: =D14 -> 57046.96056 | E26: =E14 -> 25706.40568 | F26: 33071.52157
A27: Totals | B27: =SUM(B8:B26) -> 0.5565 | C27: =SUM(C8:C26) -> 13727.74739
A29: RSI Value = | B29: =IF(ISERROR(C27/(B27)),VALUE(0),ROUND(C27/(B27),2)) -> 24668.01
A33: All Sites
A34: Crash Frequencies Per Year Summary Results | AA34: Project EB Method Summary Results (Without Animal Crashes)
D35: KA | E35: B | F35: C | G35: O | H35: Total | AD35: KA | AE35: B | AF35: C | AG35: O | AH35: Total
A36: Existing Conditions: Predicted Crash Frequency | D36: =IF($AH$36+$AH$43=0,"",IF($A$33=$AI$3,AD43,IF($A$33=$AI$2,AD36,AD36+AD43))) -> 0.0204 | E36: =IF($AH$36+$AH$43=0,"",IF($A$33=$AI$3,AE43,IF($A$33=$AI$2,AE36,AE36+AE43))) -> 0.0509 | F36: 0.0618 | G36: 0.2921 | H36: =ROUND(SUM(D36:G36),2) -> 0.43 | AA36: Existing Conditions: Predicted Crash Frequency | AD36: 0.0204 | AE36: 0.0509 | AF36: 0.0618 | AG36: 0.2921 | AH36: 0.4252
A37: Existing Conditions: Expected Crash Frequency | D37: =IF($AH$37+$AH$43=0,"",IF($A$34=$AI$3,AD43,IF($A$34=$AI$2,AD37,AD37+AD43))) -> 0.0202 | E37: =IF($AH$37+$AH$43=0,"",IF($A$34=$AI$3,AE43,IF($A$34=$AI$2,AE37,AE37+AE43))) -> 0.0528 | F37: 0.0609 | G37: 0.3093 | H37: 0.44 | AA37: Existing Conditions: Expected Crash Frequency | AD37: 0.0202 | AE37: 0.0528 | AF37: 0.0609 | AG37: 0.3093 | AH37: 0.4432
A38: Potential for Safety Improvement | D38: =IF($AH$36+$AH$43=0,"",D37-D36) -> -0.0002 | E38: =IF($AH$36+$AH$43=0,"",E37-E36) -> 0.0019 | F38: -0.0009 | G38: 0.0172 | H38: 0.02 | AA38: Potential for Safety Improvement | AD38: -0.0002 | AE38: 0.0019 | AF38: -0.0009 | AG38: 0.0172 | AH38: 0.018
A39: ="Proposed Conditions: "&IF('Project Scoring'!$H$7="ECAT - Change in base SPF","Predicted","Expected")&" Crash Frequency" -> Proposed Conditions: Expected Crash Frequency | D39: =IF($AH$39+$AH$44=0,"",IF($A$36=$AI$3,AD44,IF($A$36=$AI$2,AD39,AD39+AD44))) -> 0.0202 | E39: =IF($AH$39+$AH$44=0,"",IF($A$36=$AI$3,AE44,IF($A$36=$AI$2,AE39,AE39+AE44))) -> 0.0528 | F39: 0.0609 | G39: 0.3093 | H39: 0.44 | AA39: ="Proposed Conditions: "&IF('Project Scoring'!$H$7="ECAT - Change in base SPF","Predicted","Expected")&" Crash Frequency" -> Proposed Conditions: Expected Crash Frequency | AD39: 0.0202 | AE39: 0.0528 | AF39: 0.0609 | AG39: 0.3093 | AH39: 0.4432
A40: Observed Crashes | D40: 0 | E40: 0.5 | F40: 0 | G40: 0.5 | H40: 1
A41: Equivalent Property Damage Only Cost | D41: 39.24 | E41: 6.55 | F41: 4.44 | G41: 1 | AA41: Project EB Method Summary Results (Without Animal Crashes)
A42: Equivalent Property Damage Only Value | D42: =IF($H$37=0,D41*D40,D37*D41) -> 0.792648 | E42: =IF($H$37=0,E41*E40,E37*E41) -> 0.34584 | F42: 0.270396 | G42: 0.3093 | H42: =ROUND(SUM(D42:G42),2) -> 1.72 | AD42: KA | AE42: B | AF42: C | AG42: O | AH42: Total
AA43: Existing Conditions Observed Crashes | AD43: 0 | AE43: 0 | AF43: 0 | AG43: 0 | AH43: 0
A44: People Injuries Per Year Summary Results | AA44: Proposed Conditions Observed Crashes | AD44: 0 | AE44: 0 | AF44: 0 | AG44: 0 | AH44: 0
D45: K | E45: A | F45: B | G45: C | H45: Total
A46: Observed Totals | D46: 0 | E46: 0 | F46: 1.3333 | G46: 0.5 | H46: =ROUND(SUM(D46:G46),2) -> 1.83
A49: Benefit - Cost Ratio Calculations
C51: Net Present Value of Project | D51: 1
C52: Net Present Value of Safety Benefits | D52: 0
C53: Net Benefit | D53: -1
C54: Benefit / Cost Ratio | D54: 0
A58: Traffic Criteria
A59: Volume to Capacity Ratio | D59: 0.5

Sheet ScoringTable
A1: ODOT Highway Safety Improvement Program (HSIP) Scoring Matrix | AA1: Safety Criteria | AK1: Traffic Criteria | AO1: Economic Analysis
A2: Safety Criteria | AA2: Expected Crash Frequency | AC2: Ratio of Observed Fatal and Serious Injuries to Observed Total Crashes | AE2: Percentage of the Potential for Safety Improvement to Total Expected Crashes | AG2: Relative Severity Index | AI2: Equivalent Property Damage Only Index | AK2: Truck Percentage | AM2: Volume to Capacity Ratio | AO2: Benefit Cost Ratio | AQ2: Safety Request Percentage
A3: Expected Crash Frequency | C3: Ratio of Observed Fatal and Serious Injuries to Observed Total Crashes | E3: Percentage of the Potential for Safety Improvement to Total Expected Crashes | G3: Relative Severity Index | I3: Equivalent Property Damage Only Index | AA3: Value | AB3: Points | AC3: Value | AD3: Points | AE3: Value | AF3: Points | AG3: Value | AH3: Points | AI3: Value | AJ3: Points | AK3: Value | AL3: Points | AM3: Value | AN3: Points | AO3: Value | AP3: Points | AQ3: Value | AR3: Points
A4: Value | B4: Points | C4: Value | D4: Points | E4: Value | F4: Points | G4: Value | H4: Points | I4: Value | J4: Points | AA4: 0 | AB4: 0 | AC4: 0 | AD4: 0 | AE4: 0 | AF4: 0 | AG4: 0 | AH4: 0 | AI4: 0 | AJ4: 0 | AK4: 0 | AL4: 0 | AM4: 0 | AN4: 0 | AO4: 0 | AP4: 0 | AQ4: 0 | AR4: 10
A5: ="< "&AA5 -> < 3 | B5: =IF(AB4="","",AB4) -> 0 | C5: ="< "&AC5 -> < 0.01 | D5: =IF(AD4="","",AD4) -> 0 | E5: ="< "&AE5*100&"%" -> < 1% | F5: =IF(AF4="","",AF4) -> 0 | G5: ="< "&TEXT(AG5,"00,000") -> < 20,000 | H5: =IF(AH4="","",AH4) -> 0 | I5: ="< "&AI5 -> < 1 | J5: =IF(AJ4="","",AJ4) -> 0 | AA5: 3 | AB5: 2 | AC5: 0.01 | AD5: 1 | AE5: 0.01 | AF5: 2 | AG5: 20000 | AH5: 2 | AI5: 1 | AJ5: 1 | AK5: 0.01 | AM5: 0.55 | AN5: 2 | AO5: 1 | AP5: 3 | AQ5: 0.7 | AR5: 8
A6: =AA5&"-"&AA6-0.01 -> 3-5.99 | B6: =IF(AB5="","",AB5) -> 2 | C6: 0.01-0.02 | D6: 1 | E6: =AE5*100&"-"&(AE6-0.0001)*100&"%" -> 1-1.99% | F6: 2 | G6: =TEXT(AG5,"00,000")&"-"&TEXT(AG6-0.01,"00,000.00") -> 20,000-24,999.99 | H6: 2 | I6: 1-1.99 | J6: 1 | AA6: 6 | AB6: =AB5+2 -> 4 | AC6: 0.03 | AD6: 2 | AE6: 0.02 | AF6: 4 | AG6: 25000 | AH6: 4 | AI6: 2 | AJ6: 2 | AK6: 0.02 | AM6: =AM5+0.1 -> 0.65 | AN6: 4 | AO6: =AO5+0.15 -> 1.15 | AP6: 6 | AQ6: 0.75 | AR6: 6
A7: 6-8.99 | B7: 4 | C7: 0.03-0.04 | D7: 2 | E7: =AE6*100&"-"&(AE7-0.0001)*100&"%" -> 2-2.99% | F7: 4 | G7: =TEXT(AG6,"00,000")&"-"&TEXT(AG7-0.01,"00,000.00") -> 25,000-29,999.99 | H7: 4 | I7: 2-2.99 | J7: 2 | AA7: 9 | AB7: =AB6+2 -> 6 | AC7: 0.05 | AD7: 3 | AE7: 0.03 | AF7: 6 | AG7: 30000 | AH7: 6 | AI7: 3 | AJ7: 3 | AK7: 0.03 | AM7: =AM6+0.1 -> 0.75 | AN7: 6 | AO7: =AO6+0.15 -> 1.3 | AP7: 9 | AQ7: 0.8 | AR7: 4
A8: 9-11.99 | B8: 6 | C8: 0.05-0.06 | D8: 3 | E8: 3-3.99% | F8: 6 | G8: 30,000-34,999.99 | H8: 6 | I8: 3-3.99 | J8: 3 | AA8: 12 | AB8: 8 | AC8: 0.07 | AD8: 4 | AE8: 0.04 | AF8: 8 | AG8: 35000 | AH8: 8 | AI8: 4 | AJ8: 4 | AK8: 0.04 | AM8: 0.85 | AN8: 8 | AO8: 1.45 | AP8: 12 | AQ8: 0.85 | AR8: 2
A9: 12-14.99 | B9: 8 | C9: 0.07-0.08 | D9: 4 | E9: 4-4.99% | F9: 8 | G9: 35,000-39,999.99 | H9: 8 | I9: 4-4.99 | J9: 4 | AA9: 15 | AB9: 10 | AC9: 0.09 | AD9: 5 | AE9: 0.05 | AF9: 10 | AG9: 40000 | AH9: 10 | AI9: 5 | AJ9: 5 | AK9: 0.05 | AM9: 0.95 | AN9: 10 | AO9: 1.6 | AP9: 15 | AQ9: 0.9 | AR9: 0
A10: ="≥ "&AA9 -> ≥ 15 | B10: 10 | C10: ="≥ "&AC9 -> ≥ 0.09 | D10: 5 | E10: 5-5.99% | F10: 10 | G10: ="≥ "&TEXT(AG9,"00,000") -> ≥ 40,000 | H10: 10 | I10: ="≥ "&AI9 -> ≥ 5 | J10: 5 | AE10: 0.06 | AF10: 12 | AO10: 1.75 | AP10: 18 | AR10: =IF(BR9="","",BR9) -> 
E11: 6-6.99% | F11: 12 | AE11: 0.07 | AF11: 14 | AO11: 1.9 | AP11: 21
E12: 7-7.99% | F12: 14 | AE12: 0.08 | AF12: 16 | AO12: 2.05 | AP12: 24
E13: 8-8.99% | F13: 16 | AE13: 0.09 | AF13: 18 | AO13: 2.2 | AP13: 27
E14: 9-9.99% | F14: 18 | AE14: 0.1 | AF14: 20 | AO14: 2.35 | AP14: 30
E15: ="≥ "&AE14*100&"%" -> ≥ 10% | F15: 20
A22: Traffic Criteria | C22: Economic Analysis
A23: Volume to Capacity Ratio | C23: Benefit Cost Ratio | E23: Safety Request Percentage
A24: Value | B24: Points | C24: Value | D24: Points | E24: Value | F24: Points
A25: ="< "&AM5 -> < 0.55 | B25: =IF(AN4="","",AN4) -> 0 | C25: ="< "&AO5 -> < 1 | D25: =IF(AP4="","",AP4) -> 0 | E25: ="< "&AQ5*100&"%" -> < 70% | F25: =IF(AR4="","",AR4) -> 10
A26: =AM5&"-"&AM6-0.01 -> 0.55-0.64 | B26: 2 | C26: =AO5&"-"&AO6-0.01 -> 1-1.14 | D26: 3 | E26: =AQ5*100&"-"&(AQ6-0.0001)*100&"%" -> 70-74.99% | F26: 8
A27: =AM6&"-"&AM7-0.01 -> 0.65-0.74 | B27: 4 | C27: 1.15-1.29 | D27: 6 | E27: =AQ6*100&"-"&(AQ7-0.0001)*100&"%" -> 75-79.99% | F27: 6
A28: =AM7&"-"&AM8-0.01 -> 0.75-0.84 | B28: 6 | C28: 1.3-1.44 | D28: 9 | E28: =AQ7*100&"-"&(AQ8-0.0001)*100&"%" -> 80-84.99% | F28: 4
A29: =AM8&"-"&AM9-0.01 -> 0.85-0.94 | B29: 8 | C29: 1.45-1.59 | D29: 12 | E29: =AQ8*100&"-"&(AQ9-0.0001)*100&"%" -> 85-89.99% | F29: 2
A30: ="≥ "&AM9 -> ≥ 0.95 | B30: 10 | C30: 1.6-1.74 | D30: 15 | E30: ="≥ "&AQ9*100&"%" -> ≥ 90% | F30: 0
C31: 1.75-1.89 | D31: 18
C32: 1.9-2.04 | D32: 21
C33: 2.05-2.19 | D33: 24
C34: 2.2-2.34 | D34: 27
C35: ="≥ "&AO14 -> ≥ 2.35 | D35: 30
J37: Total Points
J39: =SUM(MAX(AB4:AB1000),MAX(AD4:AD1000),MAX(AF4:AF1000),MAX(AH4:AH1000),MAX(AJ4:AJ1000),MAX(AL4:AL1000),MAX(AN4:AN1000),MAX(AP4:AP1000),MAX(AR4:AR1000)) -> 100

Sheet RefTables (hidden)
A1: County Code | B1: District Number | D1: Ohio SHSP Emphasis Area | F1: FHWA SHSP Emphasis Area | H1: Improvement Type | I1: Access management | J1: Advanced technology and ITS | K1: Alignment | L1: Interchange design | M1: Intersection geometry
A2: ADA | B2: 9 | D2: Emphasis Area I - Data and Support Systems | F2: Creating more effective processes and safety management systems | H2: Access management | K2: Alignment - other | L2: Acceleration / deceleration / merge lane
A3: ALL | B3: 1 | D3: Emphasis Area II - Serious Crash Types | F3: Curbing aggressive driving | H3: Advanced technology and ITS | I3: Access management - other | J3: AdvancedtechnologyandITS | K3: Horizontal curve realignment | L3: Convert at-grade intersection to interchange | M3: Auxiliary lanes - add acceleration lane
A4: ASD | B4: 3 | D4: Emphasis Area III - High-Risk Behaviors/Drivers | F4: Designing safer work zones | H4: Alignment | I4: Change in access - close or restrict existing access | J4: Advanced technology and ITS - other | K4: Horizontal and vertical alignment | L4: Extend existing lane on ramp | M4: Auxiliary lanes - add auxiliary through lane
A5: ATB | B5: 4 | D5: Emphasis Area IV - Special Vehicles/Roadway Users | F5: Enhancing emergency medical capabilities to increase survivability | H5: Animal-related | I5: Change in access - miscellaneous/unspecified | J5: Congestion detection / traffic monitoring system | K5: Vertical alignment or elevation change | L5: Improve intersection radius at ramp terminus | M5: Auxiliary lanes - add left-turn lane
A6: ATH | B6: 10 | D6: Emphasis Area V - Incident and Congestion Related Crashes | F6: Ensuring drivers are licensed and fully competent | H6: Interchange design | I6: Grassed median - extend existing | J6: Dynamic message signs | L6: Installation of new lane on ramp | M6: Auxiliary lanes - add right-turn lane
A7: AUG | B7: 7 | F7: Ensuring safer bicycle travel | H7: Intersection geometry | I7: Median crossover - close crossover | J7: Over height vehicle detection | K7: Roadside | L7: Interchange design - other | M7: Auxiliary lanes - add right-turn lane (free-flow)
A8: BEL | B8: 11 | D8: EmphasisAreaIDataandSupportSystems | F8: Improving information and decision support systems | H8: Intersection traffic control | I8: Median crossover - directional crossover | L8: Ramp closure | M8: Auxiliary lanes - add slip lane
A9: BRO | B9: 9 | D9: Timely Data | F9: Improving motorcycle safety and increasing motorcycle awareness | H9: Lighting | I9: Median crossover - relocate existing | K9: Barrier end treatments (crash cushions, terminals) | L9: Ramp metering | M9: Auxiliary lanes - add two-way left-turn lane
A10: BUT | B10: 8 | D10: Reliable Data | F10: Improving the design and operation of highway intersections | H10: Miscellaneous | I10: Median crossover - unspecified | K10: Barrier transitions | M10: Auxiliary lanes - extend acceleration/deceleration lane
A11: CAR | B11: 11 | D11: Comprehensive Data | F11: Increasing driver safety awareness | H11: Non-infrastructure | I11: Raised island - install new | K11: Barrier - cable | M11: Auxiliary lanes - extend existing left-turn lane
A12: CHP | B12: 7 | D12: Integrated Data and Analysis Systems | F12: Increasing safety enhancements in vehicles | H12: Parking | I12: Raised island - modify existing | K12: Barrier - concrete | M12: Auxiliary lanes - extend existing right-turn lane
A13: CLA | B13: 7 | F13: Increasing seat belt use and improving airbag effectiveness | H13: Pedestrians and bicyclists | I13: Raised island - remove existing | K13: Barrier- metal | M13: Auxiliary lanes - miscellaneous/other/unspecified
A14: CLE | B14: 8 | D14: EmphasisAreaIISeriousCrashTypes | F14: Instituting graduated licensing for younger drivers | H14: Railroad grade crossings | I14: Raised island - unspecified | K14: Barrier - other | M14: Auxiliary lanes - modify acceleration lane
A15: CLI | B15: 8 | D15: Roadway Departure Crashes | F15: Keeping drivers alert | H15: Roadside | K15: Barrier - removal | M15: Auxiliary lanes - modify auxiliary through lane
A16: COL | B16: 11 | D16: Intersection Crashes | F16: Keeping vehicles in the roadway | H16: Roadway | K16: Curb or curb and gutter | M16: Auxiliary lanes - modify free-flow turn lane
A17: COS | B17: 5 | D17: Cross-Median Crashes | F17: Making truck travel safer | H17: Roadway delineation | K17: Drainage improvements | M17: Auxiliary lanes - modify left-turn lane offset
A18: CRA | B18: 3 | D18: Highway/Railroad Crossing Crashes | F18: Making walking and street crossing easier | H18: Roadway signs and traffic control | K18: Fencing | M18: Auxiliary lanes - modify right-turn lane offset
A19: CUY | B19: 12 | F19: Minimizing the consequences of leaving the road | H19: Shoulder treatments | K19: Removal of roadside objects (trees, poles, etc.) | M19: Auxiliary lanes - modify turn lane storage
A20: DAR | B20: 7 | D20: EmphasisAreaIIIHighRiskBehaviorsDrivers | F20: Reducing head-on and across-median crashes | H20: Speed management | K20: Roadside grading | M20: Auxiliary lanes - modify turn lane taper
A21: DEF | B21: 1 | D21: Occupant Protection Devices – Nonuse and Misuse | F21: Reducing impaired driving | H21: Work Zone | K21: Roadside - other | M21: Auxiliary lanes - modify two-way left-turn lane
A22: DEL | B22: 6 | D22: Impaired by Alcohol | F22: Reducing vehicle-train crashes | M22: Intersection geometrics - miscellaneous/other/unspecified
A23: ERI | B23: 3 | D23: Young Driver – 15 to 25 | F23: Sustaining proficiency in older drivers | M23: Intersection geometrics - modify intersection corner radius
A24: FAI | B24: 5 | D24: Distracted or Fatigued Driver | F24: Other | H24: Animal-related | I24: Intersection traffic control | J24: Lighting | K24: Roadway | M24: Intersection geometrics - modify skew angle
A25: FAY | B25: 6 | D25: Aggressive Driving | M25: Intersection geometrics - realignment to align offset cross streets
A26: FRA | B26: 6 | D26: Older Driver – 65 or Older | F26: Functional Class | I26: Intersection flashers - add "when flashing" warning sign-mounted | J26: Continuous roadway lighting | K26: Install / remove / modify passing zone | M26: Intersection geometrics - realignment to increase cross street offset
A27: FUL | B27: 2 | E27: 1 | F27: Interstates | I27: Intersection flashers - add advance emergency vehicle warning sign-mounted | J27: Intersection lighting | K27: Pavement surface - high friction surface | M27: Intersection geometrics - re-assign existing lane use
A28: GAL | B28: 10 | D28: EmphasisAreaIVSpecialVehiclesRoadwayUsers | E28: 2 | F28: Other Freeways or Expressways | I28: Intersection flashers - add advance heavy vehicle warning sign-mounted | J28: Lighting - other | K28: Pavement surface - miscellaneous | M28: Intersection geometry - other
A29: GEA | B29: 12 | D29: Commercial Vehicles | E29: 3 | F29: Other Principal Arterial Roadway | I29: Intersection flashers - add advance intersection warning sign-mounted | J29: Site lighting - horizontal curve | K29: Roadway narrowing (road diet, roadway reconfiguration) | M29: Splitter island - install on one or more approaches
A30: GRE | B30: 8 | D30: Motorcycles | E30: 4 | F30: Minor Arterial Roadway | I30: Intersection flashers - add miscellaneous/other/unspecified | J30: Site lighting - intersection | K30: Roadway - other | M30: Splitter island - remove from one or more approaches
A31: GUE | B31: 5 | D31: Bicycles | E31: 5 | F31: Major Collector Roadway | I31: Intersection flashers - add overhead (actuated) | J31: Site lighting - interchange | K31: Roadway - restripe to revise separation between opposing lanes and/or shoulder widths | M31: Splitter island - unspecified
A32: HAM | B32: 8 | D32: Pedestrians | E32: 6 | F32: Minor Collector Roadway | I32: Intersection flashers - add overhead (continuous) | J32: Site lighting - pedestrian crosswalk | K32: Roadway widening - add lane(s) along segment | M32: Through lanes - add additional through lane
A33: HAN | B33: 1 | E33: 7 | F33: Local Roadway | I33: Intersection flashers - add stop sign-mounted | K33: Roadway widening - curve
A34: HAR | B34: 1 | D34: EmphasisAreaVIncidentandCongestionRelatedCrashes | E34: 99 | F34: Other Roadway | I34: Intersection flashers - modify existing | K34: Roadway widening - travel lanes
A35: HAS | B35: 11 | D35: Rear End Crashes | I35: Intersection flashers - remove existing | J35: Parking | K35: Rumble strips - center
A36: HEN | B36: 2 | D36: Work Zone Crashes | I36: Intersection signing - add basic advance warning | K36: Rumble strips - edge or shoulder
A37: HIG | B37: 9 | I37: Intersection signing - add enhanced advance warning (double-up and/or oversize) | J37: Modify parking | K37: Rumble strips - transverse
A38: HOC | B38: 10 | I38: Intersection signing - add enhanced regulatory sign (double-up and/or oversize) | J38: Parking - other | K38: Rumble strips - unspecified or other
A39: HOL | B39: 11 | I39: Intersection signing - miscellaneous/other/unspecified | J39: Remove parking | K39: Superelevation / cross slope
A40: HUR | B40: 3 | I40: Intersection signing - relocate existing regulatory sign | J40: Restrict parking
A41: JAC | B41: 9 | I41: Intersection traffic control - other | J41: Truck parking facilities
A42: JEF | B42: 11 | I42: Modify control - all-way stop to roundabout
A43: KNO | B43: 5 | I43: Modify control - modifications to roundabout | J43: Pedestrians and bicyclists | K43: Roadway delineation
A44: LAK | B44: 12 | I44: Modify control - no control to roundabout
A45: LAW | B45: 9 | I45: Modify control - no control to two-way stop | J45: Crosswalk | K45: Improve retroreflectivity
A46: LIC | B46: 5 | I46: Modify control - remove right-turn yield | J46: Install new "smart" crosswalk | K46: Longitudinal pavement markings - new
A47: LOG | B47: 7 | I47: Modify control - reverse priority of stop condition | J47: Install new crosswalk | K47: Longitudinal pavement markings - remarking
A48: LOR | B48: 3 | I48: Modify control - traffic signal to roundabout | J48: Install sidewalk | K48: Delineators post-mounted or on barrier
A49: LUC | B49: 2 | I49: Modify control - two-way stop to all-way stop | J49: Medians and pedestrian refuge areas | K49: Raised pavement markers
A50: MAD | B50: 6 | I50: Modify control - two-way stop to signal operation | J50: Miscellaneous pedestrians and bicyclists | K50: Roadway delineation - other
A51: MAH | B51: 4 | I51: Modify control - two-way stop to roundabout | J51: Modify existing crosswalk
A52: MAR | B52: 6 | I52: Modify control - two-way yield to two-way stop | J52: Pedestrian beacons
A53: MED | B53: 3 | I53: Pavement Markings - add advance signal ahead | J53: Pedestrian bridge | K53: Roadway signs and traffic control
A54: MEG | B54: 10 | I54: Pavement markings - add advance stop ahead | J54: Pedestrian signal
A55: MER | B55: 7 | I55: Pavement markings - add dashed edge line along mainline | J55: Pedestrian signal - audible device | K55: Curve-related warning signs and flashers
A56: MIA | B56: 7 | I56: Pavement markings - add lane use symbols | J56: Pedestrian signal - Pedestrian Hybrid Beacon | K56: Sign sheeting - upgrade or replacement
A57: MOE | B57: 10 | I57: Pavement markings - add stop line | J57: Pedestrian signal - install new at intersection | K57: Roadway signs and traffic control - other
A58: MOT | B58: 7 | I58: Pavement markings - add yield line | J58: Pedestrian signal - install new at non-intersection location | K58: Roadway signs (including post) - new or updated
A59: MRG | B59: 10 | I59: Pavement markings - miscellaneous/other/unspecified | J59: Pedestrian signal - modify existing
A60: MRW | B60: 6 | I60: Pavement markings - refresh existing pavement markings | J60: Pedestrian signal - remove existing
A61: MUS | B61: 5 | I61: Modify traffic signal - add additional signal heads | J61: Pedestrian warning signs - add/modify flashers
A62: NOB | B62: 10 | I62: Modify traffic signal - add backplates | J62: Pedestrian warning signs - overhead
A63: OTT | B63: 2 | I63: Modify traffic signal - add backplates with retroreflective borders
A64: PAU | B64: 1 | I64: Modify traffic signal - add closed loop system | J64: Railroad grade crossings
A65: PER | B65: 5 | I65: Modify traffic signal - add emergency vehicle preemption
A66: PIC | B66: 6 | I66: Modify traffic signal - add flashing yellow arrow | J66: Grade separation
A67: PIK | B67: 9 | I67: Modify traffic signal - add long vehicle detection | J67: Model enforcement activity
A68: POR | B68: 4 | I68: Modify traffic signal - add railroad preemption | J68: Protective devices
A69: PRE | B69: 8 | I69: Modify traffic signal - add wireless system | J69: Railroad grade crossing gates
A70: PUT | B70: 1 | I70: Modify traffic signal - miscellaneous/other/unspecified | J70: Railroad grade crossing signing
A71: RIC | B71: 3 | I71: Modify traffic signal - modernization/replacement | J71: Railroad grade crossings - other | K71: Speed management
A72: ROS | B72: 9 | I72: Modify traffic signal - modify signal mounting (spanwire to mast arm) | J72: Surface treatment
A73: SAN | B73: 2 | I73: Modify traffic signal - remove existing signal | J73: Upgrade railroad crossing signal | K73: Modify speed limit
A74: SCI | B74: 9 | I74: Modify traffic signal - replace existing indications (incandescent-to-LED and/or 8-to-12 inch dia.) | J74: Widen crossing for additional lane | K74: Radar speed signs
A75: SEN | B75: 2 | I75: Modify traffic signal timing - left-turn phasing (permissive to protected/permissive) | K75: Speed detection system / truck warning
A76: SHE | B76: 7 | I76: Modify traffic signal timing - left-turn phasing (permissive to protected-only) | K76: Speed management - other
A77: STA | B77: 4 | I77: Modify traffic signal timing - adjust clearance interval (yellow change and/or all-red) | K77: Traffic calming feature
A78: SUM | B78: 4 | I78: Modify traffic signal timing - general retiming
A79: TRU | B79: 4 | I79: Modify traffic signal timing - signal coordination
A80: TUS | B80: 11 | I80: Systemic improvements - signal-controlled
A81: UNI | B81: 6 | I81: Systemic improvements - stop-controlled | J81: Miscellaneous
A82: VAN | B82: 1
A83: VIN | B83: 10
A84: WAR | B84: 8
A85: WAS | B85: 10 | H85: Non-infrastructure | I85: Shoulder treatments | J85: Work Zone
A86: WAY | B86: 3 | H86: Educational efforts | I86: Widen shoulder – paved or other
A87: WIL | B87: 2 | H87: Enforcement | I87: Pave existing shoulders
A88: WOO | B88: 2 | H88: Data/traffic records | I88: Shoulder grading
A89: WYA | B89: 1 | H89: Non-infrastructure - other | I89: Shoulder treatments - other
H90: Outreach
H91: Road safety audits
H92: Training and workforce development
H93: Transportation safety planning

Sheet CMS (hidden)
A1: NLF_ID | B1: LOGPOINT_COUNTY_NBR | C1: BTRS_CONGESTION_SEGMENTS6.LOGPOINT_COUNTY_NBR+BTRS_CONGESTION_SEGMENTS6.SECTION_LENGTH_NBR | D1: SECTION_LENGTH_NBR | E1: FUNCTIONAL_CLASS_CD | F1: TOTAL_VOLUME_NBR | G1: TRUCK_VOLUME_NBR | H1: VOLUME_CAPACITY_RATIO_NBR
J2: NLFID: | K2: NLFID | O2: =IF(N2="","",VALUE(N2)) -> 
J3: Blog:
J4: Elog:
J5: Error: | K5: 1

Sheet Coordinates (hidden)
A1: NLF_ID | B1: LOGPOINT_COUNTY_NBR | C1: LATITUDE_NBR | D1: LONGITUDE_NBR
A2: SFRAIR00071**C | B2: 5.31 | C2: 39.833392 | D2: -83.101623 | G2: NLFID:
G3: Logpoint:

Sheet SafetyPriority (hidden)
A1: KeyID | B1: List_Year | C1: Time Period | D1: Location Type | E1: Freeway/Non-Freeway | F1: District | G1: County | H1: Route | I1: Suffix | J1: NLF_ID | K1: TRANS_ROUTE_CD | L1: TRANS_ROUTE_ID | M1: Begin Log | N1: End Log | O1: Length | P1: Rank | Q1: INTERSECTION | R1: STREET_AT | S1: Crash Frequency | T1: Fatal Crashes | U1: Injury Crashes | V1: Fatalities | W1: Injuries | X1: V/C | Y1: ADT | Z1: TOTLANES | AA1: WIDTH | AB1: FUNCLASS | AC1: LOS | AD1: Crash Rate_MVMT | AE1: Injury Crash Rate_MVMT | AF1: Fatal Crash Rate_100MVMT | AG1: Fatalities_SeriousInjuries | AH1: Crash_Density(PerMilePerYear) | AI1: Serious_Injuries | AJ1: Fatality_Serious_Injury_Rate | AK1: Hazard Value Rank_TotCRxFatIncRatexFatIncInjuries | AM1: Safety Year: | AN1: 2012
AM2: NLFID:
AM3: Blog:
AM4: Elog:

Sheet Import (hidden)
A1: Application ID: | C1: =IF('Safety Application'!A106="","Not Assigned",'Safety Application'!A106) -> 201905D06-04
A4: General Application Data
A5: https://extranet.dot.state.oh.us/divisions/Planning/plan/HSIP_applications/Lists/AppData/ImportView.aspx
A6: Title | B6: Cycle | C6: AppID | D6: District | E6: CountyCd | F6: Sponsor | G6: Project Name | H6: PID | I6: ProjectManager | J6: PM_Phone | K6: PM_Email | L6: Applicant_Name | M6: Applicant_Title | N6: Applicant_Phone | O6: ApplicationDt | P6: RouteNbr | Q6: RouteName | R6: Blog | S6: Elog | T6: FolderPath
A7: =C7 -> 201905D06-04 | B7: =LEFT(C7,6) -> 201905 | C7: =C1 -> 201905D06-04 | D7: ='Safety Application'!C10 -> 6 | E7: ='Safety Application'!H10 -> FRA | F7: =IF('Safety Application'!D2="","",'Safety Application'!D2) -> ODOT District 6 | G7: =IF('Safety Application'!D3="","",'Safety Application'!D3) -> Courtright Rd Bridge over I-70 | H7: =IF('Safety Application'!D4="","",'Safety Application'!D4) -> 109659 | I7: =IF('Safety Application'!D5="","",'Safety Application'!D5) -> Drew Hurst | J7: =IF('Safety Application'!D6="","",'Safety Application'!D6) -> 740-833-8345 | K7: =IF('Safety Application'!D7="","",'Safety Application'!D7) -> andrew.hurst@dot.ohio.gov | L7: =IF('Safety Application'!A97="","",'Safety Application'!A97) -> Drew Hurst | M7: =IF('Safety Application'!F97="","",'Safety Application'!F97) -> Traffic Safety Engineer | N7: ='Safety Application'!I97 -> 740-833-8345 | O7: =IF('Safety Application'!I99="","",MONTH('Safety Application'!I99)&"/"&DAY('Safety Application'!I99)&"/"&YEAR('Safety Application'!I99)) -> 5/7/2019 | P7: ='Safety Application'!C11 -> 70 | Q7: ='Safety Application'!H11 -> Courtright Rd | R7: ='Safety Application'!C12 -> 20.29 | S7: ='Safety Application'!H12 ->  | T7: =IF(LEFT('Safety Application'!A108,1)="\",'Safety Application'!A108,"\\itcfs007.dot.state.oh.us\odrive"&MID('Safety Application'!A108,FIND("\",'Safety Application'!A108,1),100)) -> \\itcfs007.dot.state.oh.us\odrive\SAFETY\D06\SAFETY APPLICATIONS\FRA-70-20.29
A10: Project Priority
A11: https://extranet.dot.state.oh.us/divisions/Planning/plan/HSIP_applications/Lists/PriorityInfo/ImportView.aspx
A12: AppID | B12: PriorityText
A13: =C1 -> 201905D06-04 | B13: =IF('Safety Application'!A22="","",'Safety Application'!A22) -> There have been numerous community requests to add sidewalk across IR 70, and this would tie into a bridge deck replacement project. There are no other potential pedestrian crossings over I-70 for a mile in each direction, and there are COTA bus stops on both sides of the bridge.
A16: Application Summary of Crash Patterns and Recommended Countermeasures
A17: https://extranet.dot.state.oh.us/divisions/Planning/plan/HSIP_applications/Lists/CrashPatterns/ImportView.aspx
A18: AppID | B18: SummaryText | C18: RecCountermeasure
A19: =A13 -> 201905D06-04 | B19: ='Safety Application'!A18 -> One pedestrian-related crash has occurred in the past 5 years on Courtright between Deshler Ave. and Groves Rd, along with several other crashes including rear ends and sideswipes. There is evidence of pedestrian traffic, including worn paths leading up to the bridge. | C19: ='Safety Application'!A20 -> Add sidewalk to Courtright Rd from Deshler Ave to Groves Rd, including the IR 70 overpass. City of Columbus has an upcoming project to add sidewalks along Courtright Rd. to the south.
A22: Application Crash Data
A23: https://extranet.dot.state.oh.us/divisions/Planning/plan/HSIP_applications/Lists/CrashData/ImportView.aspx
A24: AppID | B24: Pred_Ex_KA | C24: Pred_Ex_B | D24: Pred_Ex_C | E24: Pred_Ex_O | F24: Exp_Ex_KA | G24: Exp_Ex_B | H24: Exp_Ex_C | I24: Exp_Ex_O | J24: PSI_KA | K24: PSI_B | L24: PSI_C | M24: PSI_O | N24: Prop_Type | O24: Prop_KA | P24: Prop_B | Q24: Prop_C | R24: Prop_O | S24: Obs_KA | T24: Obs_B | U24: Obs_C | V24: Obs_O | W24: Obs_People_K | X24: Obs_People_A | Y24: Obs_People_B | Z24: Obs_People_C
A25: =A19 -> 201905D06-04 | B25: ='Safety Application'!F26 -> 0.0204 | C25: ='Safety Application'!G26 -> 0.0509 | D25: ='Safety Application'!H26 -> 0.0618 | E25: ='Safety Application'!I26 -> 0.2921 | F25: ='Safety Application'!F27 -> 0.0202 | G25: ='Safety Application'!G27 -> 0.0528 | H25: ='Safety Application'!H27 -> 0.0609 | I25: ='Safety Application'!I27 -> 0.3093 | J25: ='Safety Application'!F28 -> -0.0002 | K25: ='Safety Application'!G28 -> 0.0019 | L25: ='Safety Application'!H28 -> -0.0009 | M25: ='Safety Application'!I28 -> 0.0172 | N25: =IF('Project Scoring'!H7="ECAT - Change in base SPF","Predicted","Expected") -> Expected | O25: ='Safety Application'!F29 -> 0.0202 | P25: ='Safety Application'!G29 -> 0.0528 | Q25: ='Safety Application'!H29 -> 0.0609 | R25: ='Safety Application'!I29 -> 0.3093 | S25: ='Safety Application'!F30 -> 0 | T25: ='Safety Application'!G30 -> 0.5 | U25: ='Safety Application'!H30 -> 0 | V25: ='Safety Application'!I30 -> 0.5 | W25: ='Safety Application'!F33 -> 0 | X25: ='Safety Application'!G33 -> 0 | Y25: ='Safety Application'!H33 -> 1.3333 | Z25: ='Safety Application'!I33 -> 0.5
A28: Application Scoring
A29: https://extranet.dot.state.oh.us/divisions/Planning/plan/HSIP_applications/Lists/AppScoring/ImportView.aspx
A30: AppID | B30: Expected_Value | C30: Expected_Points | D30: ObservedFSI_Value | E30: ObservedFSI_Points | F30: PercPSI_Value | G30: PercPSI_Points | H30: RSI_Value | I30: RSI_Points | J30: EPDO_Value | K30: EPDO_Points | L30: VCRatio_Value | M30: VCRatio_Points | N30: BCRatio_Value | O30: BCRatio_Points | P30: FundRequest_Value | Q30: FundRequest_Points
A31: =A25 -> 201905D06-04 | B31: ='Safety Application'!H37 -> 0.44 | C31: ='Safety Application'!I37 -> 0 | D31: ='Safety Application'!H38 -> 0 | E31: ='Safety Application'!I38 -> 0 | F31: ='Safety Application'!H39 -> 0.0455 | G31: ='Safety Application'!I39 -> 8 | H31: ='Safety Application'!H40 -> 24668.01 | I31: ='Safety Application'!I40 -> 2 | J31: ='Safety Application'!H41 -> 3.909090909 | K31: ='Safety Application'!I41 -> 3 | L31: ='Safety Application'!H42 -> 0.5 | M31: ='Safety Application'!I42 -> 0 | N31: ='Safety Application'!H43 -> 0 | O31: ='Safety Application'!I43 -> 0 | P31: ='Safety Application'!H44 -> 0.3421 | Q31: ='Safety Application'!I44 -> 10
A34: Strategic Highway Safety Plan
A35: https://extranet.dot.state.oh.us/divisions/Planning/plan/HSIP_applications/Lists/SHSP/ImportView.aspx
A36: AppID | B36: Functional Class | C36: MajAADT | D36: OhioEmpArea | E36: OhioEmpSub | F36: FHWAEmpArea | G36: FHWA_ImprovCat | H36: FHWA_ImprovSubCat
A37: =A31 -> 201905D06-04 | B37: ='Safety Application'!E48 -> Interstates | C37: ='Safety Application'!E49 -> 95340 | D37: ='Safety Application'!E50 -> Emphasis Area IV - Special Vehicles/Roadway Users | E37: ='Safety Application'!E51 -> Pedestrians | F37: ='Safety Application'!E52 -> Making walking and street crossing easier | G37: ='Safety Application'!E53 -> Pedestrians and bicyclists | H37: ='Safety Application'!E54 -> Install sidewalk
A40: Application Work Locations
A41: https://extranet.dot.state.oh.us/divisions/Planning/plan/HSIP_applications/Lists/WorkLocations/ImportView.aspx
A42: RouteID | B42: AppID | C42: Location ID | D42: NLFID | E42: Begin Logpoint | F42: End Logpoint | G42: startLatitude | H42: startLongitude | I42: endLatitude | J42: endLongitude | K42: Termini
A43: =IF(D43="","",MID(D43,5,2)&"-"&IFERROR(MID(D43,7,5)*1,MID(D43,7,5))&IF(LEFT(D43,1)="S",IF(RIGHT(D43,2)="*C","",MID(D43,13,1)),IF(RIGHT(D43,3)="**C","",MID(D43,12,1)))) -> IR-70 | B43: =IF(C43="","",$A$37) -> 201905D06-04 | C43: =IF(D43="","",1) -> 1 | D43: =IF('Safety Application'!A58=0,"",'Safety Application'!A58) -> SFRAIR00070**C | E43: =IF(D43="","",'Safety Application'!C58) -> 20.29 | F43: =IF(D43="","",'Safety Application'!D58) -> 0 | G43: =IF(D43="","",'Safety Application'!E58) -> 39.934 | H43: =IF(D43="","",'Safety Application'!F58) -> -82.898 | I43: =IF(D43="","",'Safety Application'!AA58) -> 0 | J43: =IF(D43="","",'Safety Application'!AB58) -> 0 | K43: =IF(D43="","",'Safety Application'!G58) -> Courtright Rd overpass
A44: =IF(D44="","",MID(D44,5,2)&"-"&IFERROR(MID(D44,7,5)*1,MID(D44,7,5))&IF(LEFT(D44,1)="S",IF(RIGHT(D44,2)="*C","",MID(D44,13,1)),IF(RIGHT(D44,3)="**C","",MID(D44,12,1)))) -> CR-114 | B44: =IF(C44="","",$A$37) -> 201905D06-04 | C44: =IF(D44="","",C43+1) -> 2 | D44: =IF('Safety Application'!A59=0,"",'Safety Application'!A59) -> CFRACR00114**C | E44: =IF(D44="","",'Safety Application'!C59) -> 2.05 | F44: =IF(D44="","",'Safety Application'!D59) -> 2.35 | G44: =IF(D44="","",'Safety Application'!E59) -> 39.932 | H44: =IF(D44="","",'Safety Application'!F59) -> -82.898 | K44: =IF(D44="","",'Safety Application'!G59) -> Groves Rd to Deshler Ave
C45: =IF(D45="","",C44+1) ->  | D45: =IF('Safety Application'!A60=0,"",'Safety Application'!A60) ->  | E45: =IF(D45="","",'Safety Application'!C60) ->  | F45: =IF(D45="","",'Safety Application'!D60) ->  | G45: =IF(D45="","",'Safety Application'!E60) ->  | H45: =IF(D45="","",'Safety Application'!F60) ->  | K45: =IF(D45="","",'Safety Application'!G60) -> 
D46: =IF('Safety Application'!A61=0,"",'Safety Application'!A61) ->  | E46: =IF(D46="","",'Safety Application'!C61) ->  | F46: =IF(D46="","",'Safety Application'!D61) ->  | G46: =IF(D46="","",'Safety Application'!E61) ->  | H46: =IF(D46="","",'Safety Application'!F61) ->  | K46: =IF(D46="","",'Safety Application'!G61) -> 
D47: =IF('Safety Application'!A62=0,"",'Safety Application'!A62) ->  | E47: =IF(D47="","",'Safety Application'!C62) ->  | F47: =IF(D47="","",'Safety Application'!D62) ->  | G47: =IF(D47="","",'Safety Application'!E62) ->  | H47: =IF(D47="","",'Safety Application'!F62) ->  | K47: =IF(D47="","",'Safety Application'!G62) -> 
D48: =IF('Safety Application'!A63=0,"",'Safety Application'!A63) ->  | E48: =IF(D48="","",'Safety Application'!C63) ->  | F48: =IF(D48="","",'Safety Application'!D63) ->  | G48: =IF(D48="","",'Safety Application'!E63) ->  | H48: =IF(D48="","",'Safety Application'!F63) ->  | K48: =IF(D48="","",'Safety Application'!G63) -> 
D49: =IF('Safety Application'!A64=0,"",'Safety Application'!A64) ->  | E49: =IF(D49="","",'Safety Application'!C64) ->  | F49: =IF(D49="","",'Safety Application'!D64) ->  | G49: =IF(D49="","",'Safety Application'!E64) ->  | H49: =IF(D49="","",'Safety Application'!F64) ->  | K49: =IF(D49="","",'Safety Application'!G64) -> 
D50: =IF('Safety Application'!A65=0,"",'Safety Application'!A65) ->  | E50: =IF(D50="","",'Safety Application'!C65) ->  | F50: =IF(D50="","",'Safety Application'!D65) ->  | G50: =IF(D50="","",'Safety Application'!E65) ->  | H50: =IF(D50="","",'Safety Application'!F65) ->  | K50: =IF(D50="","",'Safety Application'!G65) -> 
D51: =IF('Safety Application'!A66=0,"",'Safety Application'!A66) ->  | E51: =IF(D51="","",'Safety Application'!C66) ->  | F51: =IF(D51="","",'Safety Application'!D66) ->  | G51: =IF(D51="","",'Safety Application'!E66) ->  | H51: =IF(D51="","",'Safety Application'!F66) ->  | K51: =IF(D51="","",'Safety Application'!G66) -> 
D52: =IF('Safety Application'!A67=0,"",'Safety Application'!A67) ->  | E52: =IF(D52="","",'Safety Application'!C67) ->  | F52: =IF(D52="","",'Safety Application'!D67) ->  | G52: =IF(D52="","",'Safety Application'!E67) ->  | H52: =IF(D52="","",'Safety Application'!F67) ->  | K52: =IF(D52="","",'Safety Application'!G67) -> 
A54: Project Funding
A55: https://extranet.dot.state.oh.us/divisions/Planning/plan/HSIP_applications/Lists/Funding/ImportView.aspx
A56: AppID | B56: FY_SafetyStudy | C56: FY_IMS | D56: FY_PE_Enviro | E56: FY_PE_Design | F56: FY_ROW | G56: FY_Const | H56: NewSafety_AMT_SafetyStudy | I56: NewSafety_AMT_IMS | J56: NewSafety_AMT_PE_Enviro | K56: NewSafety_AMT_PE_Design | L56: NewSafety_AMT_ROW | M56: NewSafety_AMT_Const | N56: PrevSafety_AMT_SafetyStudy | O56: PrevSafety_AMT_IMS | P56: PrevSafety_AMT_PE_Enviro | Q56: PrevSafety_AMT_PE_Design | R56: PrevSafety_AMT_ROW | S56: PrevSafety_AMT_Const | T56: Sponsor_AMT_SafetyStudy | U56: Sponsor_AMT_IMS | V56: Sponsor_AMT_PE_Enviro | W56: Sponsor_AMT_PE_Design | X56: Sponsor_AMT_ROW | Y56: Sponsor_AMT_Const | Z56: Alt1_Source | AA56: Alt1_AMT_SafetyStudy | AB56: Alt1_AMT_IMS | AC56: Alt1_AMT_PE_Enviro | AD56: Alt1_AMT_PE_Design | AE56: Alt1_AMT_ROW | AF56: Alt1_AMT_Const | AG56: Alt2_Source | AH56: Alt2_AMT_SafetyStudy | AI56: Alt2_AMT_IMS | AJ56: Alt2_AMT_PE_Enviro | AK56: Alt2_AMT_PE_Design | AL56: Alt2_AMT_ROW | AM56: Alt2_AMT_Const | AN56: Alt3_Source | AO56: Alt3_AMT_SafetyStudy | AP56: Alt3_AMT_IMS | AQ56: Alt3_AMT_PE_Enviro | AR56: Alt3_AMT_PE_Design | AS56: Alt3_AMT_ROW | AT56: Alt3_AMT_Const | AU56: Alt4_Source | AV56: Alt4_AMT_SafetyStudy | AW56: Alt4_AMT_IMS | AX56: Alt4_AMT_PE_Enviro | AY56: Alt4_AMT_PE_Design | AZ56: Alt4_AMT_ROW | BA56: Alt4_AMT_Const | BB56: Alt5_Source | BC56: Alt5_AMT_SafetyStudy | BD56: Alt5_AMT_IMS | BE56: Alt5_AMT_PE_Enviro | BF56: Alt5_AMT_PE_Design | BG56: Alt5_AMT_ROW | BH56: Alt5_AMT_Const | BI56: Alt6_Source | BJ56: Alt6_AMT_SafetyStudy | BK56: Alt6_AMT_IMS | BL56: Alt6_AMT_PE_Enviro | BM56: Alt6_AMT_PE_Design | BN56: Alt6_AMT_ROW | BO56: Alt6_AMT_Const | BP56: Alt7_Source | BQ56: Alt7_AMT_SafetyStudy | BR56: Alt7_AMT_IMS | BS56: Alt7_AMT_PE_Enviro | BT56: Alt7_AMT_PE_Design | BU56: Alt7_AMT_ROW | BV56: Alt7_AMT_Const | BW56: AddtlDetails
A57: =A37 -> 201905D06-04 | B57: ='Safety Application'!D71 -> 0 | C57: ='Safety Application'!E71 -> 0 | D57: ='Safety Application'!F71 -> 2020 | E57: ='Safety Application'!G71 -> 2020 | F57: ='Safety Application'!H71 -> 2021 | G57: ='Safety Application'!I71 -> 2022 | H57: ='Safety Application'!D74 -> 0 | I57: ='Safety Application'!E74 -> 0 | J57: ='Safety Application'!F74 -> 0 | K57: ='Safety Application'!G74 -> 0 | L57: ='Safety Application'!H74 -> 0 | M57: ='Safety Application'!I74 -> 1300000 | N57: ='Safety Application'!D73 -> 0 | O57: ='Safety Application'!E73 -> 0 | P57: ='Safety Application'!F73 -> 0 | Q57: ='Safety Application'!G73 -> 0 | R57: ='Safety Application'!H73 -> 0 | S57: ='Safety Application'!I73 -> 0 | T57: ='Safety Application'!D75 -> 0 | U57: ='Safety Application'!E75 -> 0 | V57: ='Safety Application'!F75 -> 0 | W57: ='Safety Application'!G75 -> 0 | X57: ='Safety Application'!H75 -> 0 | Y57: ='Safety Application'!I75 -> 2500000 | Z57: ='Safety Application'!A76 -> 0 | AA57: ='Safety Application'!D76 -> 0 | AB57: ='Safety Application'!E76 -> 0 | AC57: ='Safety Application'!F76 -> 0 | AD57: ='Safety Application'!G76 -> 0 | AE57: ='Safety Application'!H76 -> 0 | AF57: ='Safety Application'!I76 -> 0 | AG57: ='Safety Application'!A77 -> 0 | AH57: ='Safety Application'!D77 -> 0 | AI57: ='Safety Application'!E77 -> 0 | AJ57: ='Safety Application'!F77 -> 0 | AK57: ='Safety Application'!G77 -> 0 | AL57: ='Safety Application'!H77 -> 0 | AM57: ='Safety Application'!I77 -> 0 | AN57: ='Safety Application'!A78 -> 0 | AO57: ='Safety Application'!D78 -> 0 | AP57: ='Safety Application'!E78 -> 0 | AQ57: ='Safety Application'!F78 -> 0 | AR57: ='Safety Application'!G78 -> 0 | AS57: ='Safety Application'!H78 -> 0 | AT57: ='Safety Application'!I78 -> 0 | AU57: ='Safety Application'!A79 -> 0 | AV57: ='Safety Application'!D79 -> 0 | AW57: ='Safety Application'!E79 -> 0 | AX57: ='Safety Application'!F79 -> 0 | AY57: ='Safety Application'!G79 -> 0 | AZ57: ='Safety Application'!H79 -> 0 | BA57: ='Safety Application'!I79 -> 0 | BB57: ='Safety Application'!A80 -> 0 | BC57: ='Safety Application'!D80 -> 0 | BD57: ='Safety Application'!E80 -> 0 | BE57: ='Safety Application'!F80 -> 0 | BF57: ='Safety Application'!G80 -> 0 | BG57: ='Safety Application'!H80 -> 0 | BH57: ='Safety Application'!I80 -> 0 | BI57: ='Safety Application'!A81 -> 0 | BJ57: ='Safety Application'!D81 -> 0 | BK57: ='Safety Application'!E81 -> 0 | BL57: ='Safety Application'!F81 -> 0 | BM57: ='Safety Application'!G81 -> 0 | BN57: ='Safety Application'!H81 -> 0 | BO57: ='Safety Application'!I81 -> 0 | BP57: ='Safety Application'!A82 -> 0 | BQ57: ='Safety Application'!D82 -> 0 | BR57: ='Safety Application'!E82 -> 0 | BS57: ='Safety Application'!F82 -> 0 | BT57: ='Safety Application'!G82 -> 0 | BU57: ='Safety Application'!H82 -> 0 | BV57: ='Safety Application'!I82 -> 0 | BW57: ='Safety Application'!A85 -> Other funds used to replace bridge deck and superstructure.
A60: Project Development
A61: https://extranet.dot.state.oh.us/divisions/Planning/plan/HSIP_applications/Lists/ProjectDevelopment/ImportView.aspx
A62: AppID | B62: SafetyStudy_CompBy | C62: SafetyStudy_CompDt | D62: IMS_CompBy | E62: IMS__CompDt | F62: PE_Enviro_CompBy | G62: PE_Enviro_CompDt | H62: PE_Design_CompBy | I62: PE_Design_CompDt | J62: ROW_CompBy | K62: ROW_CompDt
A63: =A57 -> 201905D06-04 | B63: ='Safety Application'!E89 -> 0 | C63: =IF('Safety Application'!H89="","",MONTH('Safety Application'!H89)&"/"&DAY('Safety Application'!H89)&"/"&YEAR('Safety Application'!H89)) ->  | D63: ='Safety Application'!E90 -> 0 | E63: =IF('Safety Application'!H90="","",MONTH('Safety Application'!H90)&"/"&DAY('Safety Application'!H90)&"/"&YEAR('Safety Application'!H90)) ->  | F63: ='Safety Application'!E91 -> 0 | G63: =IF('Safety Application'!H91="","",MONTH('Safety Application'!H91)&"/"&DAY('Safety Application'!H91)&"/"&YEAR('Safety Application'!H91)) ->  | H63: ='Safety Application'!E92 -> 0 | I63: =IF('Safety Application'!H92="","",MONTH('Safety Application'!H92)&"/"&DAY('Safety Application'!H92)&"/"&YEAR('Safety Application'!H92)) ->  | J63: ='Safety Application'!E93 -> 0 | K63: =IF('Safety Application'!H93="","",MONTH('Safety Application'!H93)&"/"&DAY('Safety Application'!H93)&"/"&YEAR('Safety Application'!H93)) -> 
